fUSD/lending_fUSD_20260531
["ID","MTS","AMOUNT","RATE_DAILY","PERIOD"]
[423514945,1780177842000,-151.0,0.00022253,2]
[423514943,1780177842000,-151.0,0.00022253,2]
[423514944,1780177842000,-151.0,0.00022253,2]
[423514948,1780177842000,-151.0,0.00022253,2]
[423514947,1780177842000,-151.0,0.00022253,2]
[423514946,1780177842000,-151.0,0.00022253,2]
[423514949,1780177842000,-151.0,0.00022253,2]
[423514886,1780177842000,-19365.77342329,0.00021778,2]
[423514933,1780177842000,-151.0,0.00022253,2]
[423514930,1780177842000,-151.0,0.00022253,2]
[423514935,1780177842000,-151.0,0.00022253,2]
[423514928,1780177842000,-1500000.0,0.00022253,2]
[423514894,1780177842000,-410.0,0.00022,2]
[423514917,1780177842000,-1044.8,0.00022252,2]
[423514893,1780177842000,-299.0,0.00022,2]
[423514895,1780177842000,-185.0,0.00022,2]
[423514896,1780177842000,-549.0,0.00022,2]
[423514904,1780177842000,-450.0,0.00022,2]
[423514899,1780177842000,-212.0,0.00022,2]
[423514900,1780177842000,-816.0,0.00022,2]
[423514897,1780177842000,-551.0,0.00022,2]
[423514898,1780177842000,-263.0,0.00022,2]
[423514902,1780177842000,-221.0,0.00022,2]
[423514903,1780177842000,-1050.0,0.00022,2]
[423514906,1780177842000,-166.68,0.00022067,2]
[423514901,1780177842000,-240.0,0.00022,2]
[423514916,1780177842000,-1044.8,0.00022252,2]
[423514929,1780177842000,-2394.68422181,0.00022253,2]
[423514907,1780177842000,-200.0,0.00022102,2]
[423514913,1780177842000,-500.0,0.00022252,2]
[423514911,1780177842000,-500.0,0.00022252,2]
[423514915,1780177842000,-1044.8,0.00022252,2]
[423514914,1780177842000,-436.07996815,0.00022252,2]
[423514918,1780177842000,-1044.8,0.00022252,2]
[423514910,1780177842000,-500.0,0.00022252,2]
[423514908,1780177842000,-10000.0,0.00022153,2]
[423514909,1780177842000,-194.38132776,0.00022243,2]
[423514905,1780177842000,-674.0,0.00022,2]
[423514912,1780177842000,-500.0,0.00022252,2]
[423515011,1780177843000,-151.0,0.00022253,2]
[423515006,1780177843000,-151.0,0.00022253,2]
[423514999,1780177843000,-151.0,0.00022253,2]
[423514995,1780177843000,-151.0,0.00022253,2]
[423514988,1780177843000,-151.0,0.00022253,2]
[423514991,1780177843000,-151.0,0.00022253,2]
[423514997,1780177843000,-151.0,0.00022253,2]
[423514993,1780177843000,-151.0,0.00022253,2]
[423514992,1780177843000,-151.0,0.00022253,2]
[423514996,1780177843000,-151.0,0.00022253,2]
[423515010,1780177843000,-151.0,0.00022253,2]
[423514998,1780177843000,-151.0,0.00022253,2]
[423515001,1780177843000,-151.0,0.00022253,2]
[423515015,1780177843000,-151.0,0.00022253,2]
[423515005,1780177843000,-151.0,0.00022253,2]
[423515009,1780177843000,-151.0,0.00022253,2]
[423515004,1780177843000,-151.0,0.00022253,2]
[423515003,1780177843000,-151.0,0.00022253,2]
[423515002,1780177843000,-151.0,0.00022253,2]
[423515000,1780177843000,-151.0,0.00022253,2]
[423515008,1780177843000,-151.0,0.00022253,2]
[423515014,1780177843000,-151.0,0.00022253,2]
[423515012,1780177843000,-151.0,0.00022253,2]
[423515013,1780177843000,-151.0,0.00022253,2]
[423515017,1780177843000,-151.0,0.00022253,2]
[423514989,1780177843000,-151.0,0.00022253,2]
[423515007,1780177843000,-151.0,0.00022253,2]
[423514990,1780177843000,-151.0,0.00022253,2]
[423514952,1780177843000,-151.0,0.00022253,2]
[423514986,1780177843000,-151.0,0.00022253,2]
[423515020,1780177843000,-200.0,0.0002234,2]
[423514951,1780177843000,-151.0,0.00022253,2]
[423514953,1780177843000,-151.0,0.00022253,2]
[423514950,1780177843000,-151.0,0.00022253,2]
[423514957,1780177843000,-151.0,0.00022253,2]
[423514959,1780177843000,-151.0,0.00022253,2]
[423514961,1780177843000,-151.0,0.00022253,2]
[423514955,1780177843000,-151.0,0.00022253,2]
[423514963,1780177843000,-151.0,0.00022253,2]
[423514965,1780177843000,-151.0,0.00022253,2]
[423514966,1780177843000,-151.0,0.00022253,2]
[423514968,1780177843000,-151.0,0.00022253,2]
[423514972,1780177843000,-151.0,0.00022253,2]
[423514970,1780177843000,-151.0,0.00022253,2]
[423514969,1780177843000,-151.0,0.00022253,2]
[423514967,1780177843000,-151.0,0.00022253,2]
[423514971,1780177843000,-151.0,0.00022253,2]
[423514980,1780177843000,-151.0,0.00022253,2]
[423514984,1780177843000,-151.0,0.00022253,2]
[423514979,1780177843000,-151.0,0.00022253,2]
[423514987,1780177843000,-151.0,0.00022253,2]
[423514978,1780177843000,-151.0,0.00022253,2]
[423514974,1780177843000,-151.0,0.00022253,2]
[423514976,1780177843000,-151.0,0.00022253,2]
[423514985,1780177843000,-151.0,0.00022253,2]
[423514981,1780177843000,-151.0,0.00022253,2]
[423514983,1780177843000,-151.0,0.00022253,2]
[423514994,1780177843000,-151.0,0.00022253,2]
[423515019,1780177843000,-151.0,0.00022253,2]
[423514982,1780177843000,-151.0,0.00022253,2]
[423515016,1780177843000,-151.0,0.00022253,2]
[423515052,1780177843000,-566.0,0.00023221,2]
[423515059,1780177843000,-5324.25317743,0.00023963,2]
[423515049,1780177843000,-395.0,0.00023032,2]
[423515051,1780177843000,-19365.77342329,0.00023148,2]
[423515050,1780177843000,-150.05,0.00023097,2]
[423515055,1780177843000,-200.0,0.00023436,2]
[423515060,1780177843000,-200.0,0.00023984,2]
[423515053,1780177843000,-151.0,0.00023288,2]
[423515056,1780177843000,-2682.57183977,0.00023436,2]
[423515063,1780177843000,-410.0,0.00024,2]
[423515071,1780177843000,-221.0,0.00024,2]
[423515062,1780177843000,-299.0,0.00024,2]
[423515069,1780177843000,-816.0,0.00024,2]
[423515072,1780177843000,-1050.0,0.00024,2]
[423515061,1780177843000,-2781.82699784,0.00023984,2]
[423515066,1780177843000,-551.0,0.00024,2]
[423515065,1780177843000,-549.0,0.00024,2]
[423515070,1780177843000,-240.0,0.00024,2]
[423515064,1780177843000,-185.0,0.00024,2]
[423515067,1780177843000,-263.0,0.00024,2]
[423515068,1780177843000,-212.0,0.00024,2]
[423515078,1780177843000,-293.58,0.00024174,2]
[423515075,1780177843000,-1124.0,0.00024021,2]
[423515074,1780177843000,-674.0,0.00024,2]
[423515079,1780177843000,-11895.8,0.00024174,2]
[423515076,1780177843000,-397.32,0.0002411,2]
[423515073,1780177843000,-500.0,0.00024,2]
[423515054,1780177843000,-253.92,0.00023288,2]
[423515077,1780177843000,-241.96,0.0002411,2]
[423515022,1780177843000,-3023.9,0.00022353,2]
[423515057,1780177843000,-200.0,0.00023673,2]
[423515058,1780177843000,-797.09195375,0.00023919,2]
[423515018,1780177843000,-151.0,0.00022253,2]
[423515035,1780177843000,-500.0,0.00023,20]
[423515029,1780177843000,-1124.0,0.0002282,2]
[423515025,1780177843000,-454.08,0.00022466,2]
[423515031,1780177843000,-200.0,0.00022888,2]
[423515023,1780177843000,-5324.25317743,0.00022414,2]
[423515024,1780177843000,-1782.42,0.00022463,2]
[423515033,1780177843000,-227.76928953,0.00022946,2]
[423515030,1780177843000,-200.0,0.00022887,2]
[423515028,1780177843000,-596.08,0.00022513,2]
[423515034,1780177843000,-442.14038558,0.00022946,2]
[423515027,1780177843000,-1381.65,0.00022477,2]
[423515026,1780177843000,-276.52,0.00022466,2]
[423515021,1780177843000,-2494.55939288,0.0002234,2]
[423515037,1780177843000,-410.0,0.00023,2]
[423515032,1780177843000,-2586.85809042,0.00022888,2]
[423515044,1780177843000,-816.0,0.00023,2]
[423515043,1780177843000,-490.94,0.00023,7]
[423515045,1780177843000,-240.0,0.00023,2]
[423515040,1780177843000,-551.0,0.00023,2]
[423515039,1780177843000,-549.0,0.00023,2]
[423515046,1780177843000,-221.0,0.00023,2]
[423515041,1780177843000,-263.0,0.00023,2]
[423515038,1780177843000,-185.0,0.00023,2]
[423515047,1780177843000,-1050.0,0.00023,2]
[423515048,1780177843000,-674.0,0.00023,2]
[423515042,1780177843000,-212.0,0.00023,2]
[423515036,1780177843000,-299.0,0.00023,2]
[423515102,1780177844000,-957.54,0.00024658,2]
[423515100,1780177844000,-168.13,0.00024566,2]
[423515108,1780177844000,-203.46086733,0.00025,2]
[423515111,1780177844000,-205.75997407,0.00025,2]
[423515113,1780177844000,-35.29559211,0.00025,2]
[423515109,1780177844000,-356.84350092,0.00025,2]
[423515112,1780177844000,-323.94443382,0.00025,2]
[423515114,1780177844000,-278.0,0.00025,2]
[423515105,1780177844000,-1000.0,0.000248,3]
[423515115,1780177844000,-217.22826806,0.00025,2]
[423515110,1780177844000,-204.00627471,0.00025,2]
[423515101,1780177844000,-501.13708143,0.00024639,2]
[423515106,1780177844000,-303.53545805,0.00025,2]
[423515104,1780177844000,-1000.0,0.000248,2]
[423515097,1780177844000,-19365.77342329,0.00024517,2]
[423515098,1780177844000,-200.0,0.00024532,2]
[423515099,1780177844000,-2884.75459676,0.00024532,2]
[423515103,1780177844000,-1000.0,0.00024658,2]
[423515095,1780177844000,-3023.9,0.00024324,2]
[423515093,1780177844000,-1704.65,0.00024174,2]
[423515096,1780177844000,-200.0,0.00024458,2]
[423515094,1780177844000,-2000.0,0.00024272,2]
[423515092,1780177844000,-849.66,0.00024174,2]
[423515118,1780177844000,-221.05145046,0.00025,2]
[423515107,1780177844000,-414.41897422,0.00025,2]
[423515120,1780177844000,-678.0,0.00025,2]
[423515127,1780177844000,-590.97,0.00025,2]
[423515123,1780177844000,-590.97,0.00025,2]
[423515140,1780177844000,-19009.9803229,0.00025276,2]
[423515144,1780177844000,-360725.98384599,0.00025276,2]
[423515143,1780177844000,-595335.7344357,0.00025276,2]
[423515138,1780177844000,-1044.8,0.00025275,2]
[423515139,1780177844000,-1341.7528328,0.00025276,2]
[423515142,1780177844000,-1506.8354322,0.00025276,2]
[423515141,1780177844000,-3377.4568535,0.00025276,2]
[423515133,1780177844000,-2991.49051684,0.0002508,2]
[423515116,1780177844000,-817.11380807,0.00025,2]
[423515131,1780177844000,-590.97,0.00025,2]
[423515136,1780177844000,-200.0,0.00025243,2]
[423515135,1780177844000,-1124.0,0.00025222,2]
[423515132,1780177844000,-200.0,0.0002508,2]
[423515129,1780177844000,-590.97,0.00025,2]
[423515117,1780177844000,-245.07256622,0.00025,2]
[423515137,1780177844000,-194.38132776,0.00025266,2]
[423515125,1780177844000,-590.97,0.00025,2]
[423515124,1780177844000,-590.97,0.00025,2]
[423515119,1780177844000,-1063.85446231,0.00025,2]
[423515122,1780177844000,-590.97,0.00025,2]
[423515126,1780177844000,-590.97,0.00025,2]
[423515134,1780177844000,-550.0,0.00025082,2]
[423515128,1780177844000,-590.97,0.00025,2]
[423515130,1780177844000,-590.97,0.00025,2]
[423515121,1780177844000,-1047.61960593,0.00025,2]
[423515149,1780177846000,-4985.63789853,0.00025276,2]
[423515148,1780177846000,-5419.80146973,0.00025276,2]
[423515146,1780177846000,-150.0,0.00020087,2]
[423515147,1780177846000,-1112.90862679,0.00025276,2]
[423515153,1780178084000,1600.0,0.00025709,120]
[423515162,1780178941000,1000.0,0.00027998,120]
[423515165,1780179032000,-290.05642929,0.000144,2]
[423515237,1780179038000,-276.40381698,0.000144,2]
[423515238,1780179038000,-473.72146847,0.00014422,2]
[423515239,1780179038000,-206.48231357,0.0001446,2]
[423515240,1780179038000,-600.0,0.0001446,2]
[423515241,1780179038000,-296.53449815,0.0001446,2]
[423515244,1780179038000,-404.80519631,0.00014505,2]
[423515243,1780179038000,-92.27494924,0.00014498,2]
[423515245,1780179038000,-101.2841412,0.00014522,2]
[423515242,1780179038000,-207.72505076,0.00014498,2]
[423515252,1780179041000,-65.44611893,0.00014522,2]
[423515251,1780179041000,-300.09658155,0.0001452,2]
[423515264,1780179043000,-1010.45539315,0.00014522,2]
[423515268,1780179046000,-1322.81434672,0.00014522,2]
[423515269,1780179046000,-884.73995328,0.00014561,2]
[423515272,1780179046000,-656.68781179,0.00014561,2]
[423515270,1780179046000,-343.26120001,0.00014561,2]
[423515271,1780179046000,-1271.99884671,0.00014561,2]
[423515278,1780179175000,-2500.0,0.00014568,2]
[423515274,1780179175000,-250.0,0.00014,2]
[423515275,1780179175000,-1843.31218821,0.00014561,2]
[423515277,1780179175000,-300.0,0.00014567,2]
[423515279,1780179175000,-300.0,0.00014575,2]
[423515276,1780179175000,-2500.0,0.00014561,2]
[423515281,1780179175000,-300.0,0.00014611,2]
[423515282,1780179175000,-212.3053,0.00014704,2]
[423515283,1780179175000,-166.66,0.00015403,2]
[423515285,1780179175000,-166.66,0.00015727,2]
[423515284,1780179175000,-150.44,0.00015539,2]
[423515286,1780179175000,-1108.87407132,0.00015859,2]
[423515280,1780179175000,-201.74844047,0.00014604,2]
[423515287,1780179201000,-151.0,0.00015302,2]
[423515288,1780179202000,-153.0,0.00015302,2]
[423515289,1780179202000,-215.58360558,0.00015302,2]
[423515291,1780179202000,-2500.0,0.00015581,2]
[423515290,1780179202000,-300.0,0.00015581,2]
[423515293,1780179202000,-2500.0,0.00015779,2]
[423515294,1780179202000,-2309.03995508,0.00015859,2]
[423515295,1780179202000,-150.0,0.00015864,2]
[423515296,1780179202000,-600.0,0.00015864,2]
[423515297,1780179202000,-300.0,0.00015864,2]
[423515298,1780179202000,-521.37643934,0.00015923,2]
[423515292,1780179202000,-300.0,0.00015779,2]
[423515299,1780179233000,-152.0,0.00015922,2]
[423515300,1780179233000,-151.0,0.00015922,2]
[423515301,1780179233000,-153.0,0.00015922,2]
[423515302,1780179233000,-1978.62356066,0.00015923,2]
[423515303,1780179233000,-300.0,0.00015923,2]
[423515305,1780179233000,-300.0,0.00016,2]
[423515306,1780179233000,-2500.0,0.00016017,2]
[423515307,1780179233000,-300.0,0.00016017,2]
[423515304,1780179233000,-300.0,0.00015948,2]
[423515309,1780179233000,-150.44,0.00016084,2]
[423515311,1780179233000,-236.48,0.00016141,2]
[423515310,1780179233000,-653.68,0.00016132,2]
[423515312,1780179233000,-1000.0,0.00016151,2]
[423515314,1780179233000,-500.0,0.00016337,2]
[423515315,1780179233000,-500.0,0.00016337,2]
[423515313,1780179233000,-200.0,0.0001631,2]
[423515316,1780179233000,-458.11643934,0.00016337,2]
[423515308,1780179233000,-166.66,0.00016052,2]
[423515317,1780179732000,891.21,0.00027821,120]
[423515318,1780180055000,152.0,0.00027318,120]
[423515319,1780180077000,152.0,0.00027318,120]
[423515320,1780180140000,1000.0,0.00027997,120]
[423515342,1780180232000,-255.0,0.00011737,2]
[423515340,1780180232000,-2113.88977336,0.00011537,2]
[423515345,1780180232000,-927.0,0.00012945,2]
[423515358,1780180232000,-1000.0,0.00014312,2]
[423515344,1780180232000,-433.0,0.00012871,2]
[423515346,1780180232000,-2113.88977331,0.00013022,2]
[423515357,1780180232000,-200.0,0.00014203,2]
[423515350,1780180232000,-162.24,0.00013987,2]
[423515360,1780180232000,-159.84,0.00014437,2]
[423515351,1780180232000,-326.84,0.00014006,2]
[423515348,1780180232000,-189.18,0.00013669,2]
[423515347,1780180232000,-6058.18,0.0001337,2]
[423515341,1780180232000,-154.66134378,0.00011637,2]
[423515349,1780180232000,-6280.0,0.00013769,2]
[423515353,1780180232000,-189.18,0.00014011,2]
[423515359,1780180232000,-189.18,0.00014352,2]
[423515343,1780180232000,-1680.0,0.00011768,2]
[423515332,1780180232000,-365.21275114,0.00010699,2]
[423515338,1780180232000,-9756.850917,0.000107,2]
[423515355,1780180232000,-5132.0,0.00014054,2]
[423515322,1780180232000,-200.0,0.00010194,7]
[423515321,1780180232000,-200.0,0.00010194,2]
[423515323,1780180232000,-231.16,0.000103,2]
[423515334,1780180232000,-150.0,0.00010699,2]
[423515330,1780180232000,-251.18962768,0.00010699,2]
[423515325,1780180232000,-1184.04351089,0.000103,2]
[423515339,1780180232000,-209187.39275595,0.000107,2]
[423515328,1780180232000,-500.0,0.00010699,2]
[423515327,1780180232000,-500.0,0.00010699,2]
[423515324,1780180232000,-370.50525017,0.000103,2]
[423515333,1780180232000,-312.33714038,0.00010699,2]
[423515329,1780180232000,-197.47149095,0.00010699,2]
[423515337,1780180232000,-1723.1,0.000107,2]
[423515335,1780180232000,-150.0,0.00010699,2]
[423515336,1780180232000,-370.06423587,0.000107,2]
[423515331,1780180232000,-542.56640375,0.00010699,2]
[423515361,1780180232000,-166.36,0.00014459,2]
[423515326,1780180232000,-1200.0,0.00010698,2]
[423515367,1780180232000,-159.84,0.00014563,2]
[423515399,1780180232000,-189.18,0.00015036,2]
[423515398,1780180232000,-2079.20142691,0.00015,2]
[423515404,1780180232000,-166.66,0.00015308,2]
[423515403,1780180232000,-150.0,0.00015261,2]
[423515405,1780180232000,-159.84,0.00015323,2]
[423515407,1780180232000,-151.0,0.00015357,2]
[423515406,1780180232000,-152.0,0.00015357,2]
[423515401,1780180232000,-159.84,0.00015197,2]
[423515414,1780180232000,-151.0,0.00015357,2]
[423515411,1780180232000,-151.0,0.00015357,2]
[423515363,1780180232000,-891.21,0.00014506,2]
[423515410,1780180232000,-151.0,0.00015357,2]
[423515415,1780180232000,-151.0,0.00015357,2]
[423515412,1780180232000,-151.0,0.00015357,2]
[423515413,1780180232000,-151.0,0.00015357,2]
[423515416,1780180232000,-151.0,0.00015357,2]
[423515408,1780180232000,-153.0,0.00015357,2]
[423515394,1780180232000,-326289.42937538,0.00015,2]
[423515409,1780180232000,-152.0,0.00015357,2]
[423515397,1780180232000,-193013.29731775,0.00015,2]
[423515376,1780180232000,-9966.27783262,0.000149,2]
[423515379,1780180232000,-159.84,0.00014943,2]
[423515369,1780180232000,-10400.25,0.00014622,2]
[423515380,1780180232000,-151.0,0.00014997,2]
[423515371,1780180232000,-159.84,0.0001469,2]
[423515382,1780180232000,-500.0,0.00014999,2]
[423515373,1780180232000,-189.18,0.00014694,2]
[423515365,1780180232000,-2113.88977331,0.00014507,2]
[423515385,1780180232000,-500.0,0.00014999,2]
[423515388,1780180232000,-500.0,0.00014999,2]
[423515390,1780180232000,-500.0,0.00014999,2]
[423515402,1780180232000,-1314.05,0.00015261,2]
[423515392,1780180232000,-500.0,0.00014999,2]
[423515396,1780180232000,-113478.59284036,0.00015,2]
[423515395,1780180232000,-167809.29341967,0.00015,2]
[423515374,1780180232000,-159.84,0.00014817,2]
[423515400,1780180232000,-159.84,0.0001507,2]
[423515420,1780180233000,-500.0,0.00015357,2]
[423515417,1780180233000,-294.0,0.00015357,2]
[423515418,1780180233000,-151.0,0.00015357,2]
[423515419,1780180233000,-500.0,0.00015357,2]
[423515423,1780180233000,-9987.12676538,0.00015358,2]
[423515422,1780180233000,-1254.41808677,0.00015358,2]
[423515421,1780180233000,-34773.3923524,0.00015358,2]
[423515427,1780180240000,-396.446606,0.00015358,2]
[423515426,1780180240000,-8964.02441813,0.00015358,2]
[423515446,1780180244000,-335.3,0.00015358,2]
[423515508,1780180253000,152.0,0.00027393,120]
[423515520,1780180288000,-136681.0741634,0.00015358,2]
[423515519,1780180288000,-3141.7694393,0.00015358,2]
[423515521,1780180288000,-2500.0,0.00015392,2]
[423515517,1780180288000,-127208.7328419,0.00015358,2]
[423515518,1780180288000,-432.9146704,0.00015358,2]
[423515512,1780180288000,-152.0,0.0001535,2]
[423515516,1780180288000,-79074.67084932,0.00015358,2]
[423515515,1780180288000,-151.0,0.00015355,2]
[423515511,1780180288000,-5809.73202705,0.0001535,2]
[423515513,1780180288000,-2500.0,0.00015352,2]
[423515523,1780180288000,-2500.0,0.00015392,2]
[423515514,1780180288000,-300.0,0.00015354,2]
[423515524,1780180288000,-300.0,0.00015449,2]
[423515538,1780180288000,-190.14568347,0.00015991,2]
[423515527,1780180288000,-159.84,0.0001545,2]
[423515526,1780180288000,-300.0,0.00015449,2]
[423515525,1780180288000,-300.0,0.00015449,2]
[423515528,1780180288000,-150.7457,0.00015512,2]
[423515529,1780180288000,-159.84,0.00015576,2]
[423515532,1780180288000,-215.58360558,0.00015717,2]
[423515530,1780180288000,-166.66,0.00015631,2]
[423515531,1780180288000,-159.84,0.00015703,2]
[423515533,1780180288000,-159.84,0.0001583,2]
[423515534,1780180288000,-2702.35,0.00015845,2]
[423515535,1780180288000,-2080.0,0.000159,5]
[423515536,1780180288000,-166.66,0.00015953,2]
[423515537,1780180288000,-159.84,0.00015956,2]
[423515522,1780180288000,-2500.0,0.00015392,2]
[423515539,1780180555000,152.0,0.00027339,120]
[423515540,1780180556000,152.0,0.00027339,120]
[423515543,1780181155000,200.0,5e-05,30]
[423515544,1780181182000,152.0,0.00027215,120]
[423515545,1780181183000,152.0,0.00027215,120]
[423515550,1780181271000,159.33,5e-05,120]
[423515551,1780181293000,152.0,0.00027269,120]
[423515552,1780181340000,1000.0,0.00027996,120]
[423515553,1780181359000,152.0,0.00027269,120]
[423515569,1780181431000,-2000.0,0.00013492,2]
[423515559,1780181431000,-209.55,0.00013252,2]
[423515561,1780181431000,-947.2,0.00013278,2]
[423515560,1780181431000,-1000.0,0.00013266,2]
[423515562,1780181431000,-200.0,0.00013279,2]
[423515565,1780181431000,-150.0,0.00013337,2]
[423515567,1780181431000,-1018.81,0.00013344,2]
[423515563,1780181431000,-278.59,0.00013279,2]
[423515574,1780181431000,-150.0,0.00013525,2]
[423515578,1780181431000,-163.3,0.00013535,2]
[423515576,1780181431000,-3575.4,0.00013529,2]
[423515580,1780181431000,-150.0,0.00013626,2]
[423515582,1780181431000,-267.58,0.0001367,2]
[423515594,1780181431000,-522.12768216,0.00013698,2]
[423515585,1780181431000,-500.0,0.00013698,2]
[423515583,1780181431000,-2148.51,0.00013673,2]
[423515591,1780181431000,-509.90076802,0.00013698,2]
[423515587,1780181431000,-500.0,0.00013698,2]
[423515589,1780181431000,-500.0,0.00013698,2]
[423515572,1780181431000,-733.03,0.0001351,2]
[423515641,1780181432000,-166.66,0.0001411,2]
[423515654,1780181432000,-166.66,0.00014384,2]
[423515659,1780181432000,-267.58,0.00014578,2]
[423515658,1780181432000,-733.03,0.00014523,2]
[423515651,1780181432000,-215.58360558,0.00014332,2]
[423515655,1780181432000,-500.0,0.00014389,2]
[423515657,1780181432000,-267.58,0.00014503,2]
[423515653,1780181432000,-267.58,0.00014351,2]
[423515650,1780181432000,-267.58,0.00014275,2]
[423515656,1780181432000,-267.58,0.00014427,2]
[423515660,1780181432000,-213.62,0.00014611,2]
[423515668,1780181432000,-2500.0,0.00014671,2]
[423515664,1780181432000,-300.0,0.00014671,2]
[423515663,1780181432000,-300.0,0.00014671,2]
[423515666,1780181432000,-2500.0,0.00014671,2]
[423515669,1780181432000,-2500.0,0.00014671,2]
[423515665,1780181432000,-300.0,0.00014671,2]
[423515672,1780181432000,-267.58,0.00014806,2]
[423515667,1780181432000,-2500.0,0.00014671,2]
[423515671,1780181432000,-267.58,0.0001473,2]
[423515670,1780181432000,-150.0,0.00014673,2]
[423515674,1780181432000,-300.0,0.00014841,2]
[423515673,1780181432000,-8608.81610317,0.00014838,2]
[423515662,1780181432000,-300.0,0.00014671,2]
[423515646,1780181432000,-267.58,0.000142,2]
[423515606,1780181432000,-229.79648262,0.00013698,2]
[423515635,1780181432000,-250.0,0.00014,2]
[423515596,1780181432000,-175.83273938,0.00013698,2]
[423515600,1780181432000,-500.0,0.00013698,2]
[423515598,1780181432000,-255.64892579,0.00013698,2]
[423515602,1780181432000,-500.0,0.00013698,2]
[423515604,1780181432000,-299.77805079,0.00013698,2]
[423515675,1780181432000,-2500.0,0.00014841,2]
[423515608,1780181432000,-166.66,0.00013699,2]
[423515618,1780181432000,-163.44,0.000137,2]
[423515620,1780181432000,-267.58,0.00013745,2]
[423515622,1780181432000,-267.58,0.00013821,2]
[423515626,1780181432000,-733.03,0.00013848,2]
[423515637,1780181432000,-267.58,0.00014048,2]
[423515610,1780181432000,-200.0,0.00013699,2]
[423515612,1780181432000,-727.47,0.00013699,2]
[423515614,1780181432000,-376.32793672,0.00013699,2]
[423515616,1780181432000,-156.0,0.00013699,2]
[423515628,1780181432000,-267.58,0.00013897,2]
[423515629,1780181432000,-166.68,0.00013962,2]
[423515631,1780181432000,-267.58,0.00013973,2]
[423515633,1780181432000,-166.66,0.00013973,2]
[423515642,1780181432000,-267.58,0.00014124,2]
[423515644,1780181432000,-733.03,0.00014185,2]
[423515639,1780181432000,-500.0,0.00014053,2]
[423515648,1780181432000,-166.66,0.00014247,2]
[423515624,1780181432000,-166.66,0.00013836,2]
[423515676,1780181432000,-733.03,0.00014861,2]
[423515661,1780181432000,-267.58,0.00014654,2]
[423515680,1780181432000,-99260.5333,0.0001489,2]
[423515712,1780181432000,-79207.4400536,0.00015157,2]
[423515707,1780181432000,-500.0,0.00015156,2]
[423515710,1780181432000,-500.0,0.00015156,2]
[423515709,1780181432000,-500.0,0.00015156,2]
[423515708,1780181432000,-541.66,0.00015156,2]
[423515713,1780181432000,-1649.12316066,0.00015157,2]
[423515715,1780181432000,-34771.58142599,0.00015157,2]
[423515716,1780181432000,-37371.08646691,0.00015157,2]
[423515714,1780181432000,-9939.89033976,0.00015157,2]
[423515719,1780181432000,-9293.7297478,0.00015157,2]
[423515720,1780181432000,-4515.13940242,0.00015157,2]
[423515711,1780181432000,-576.6115377,0.00015156,2]
[423515717,1780181432000,-9866.86738246,0.00015157,2]
[423515718,1780181432000,-388.019697,0.00015157,2]
[423515723,1780181432000,-659.1457183,0.00015157,2]
[423515722,1780181432000,-365.813,0.00015157,2]
[423515725,1780181432000,-615.73022702,0.00015157,2]